Cogmind - Beta 14 @@@ ROGUE MODE // 2024.08.22 @ 12:40:32 Player: Minty Result: Self-destructed Performance ------------- Evolutions (5) 2500 Regions Visited (4) 800 Robots Destroyed (52) 260 Value Destroyed (1753) 1753 Prototype IDs (2) 40 Alien Tech Used (0) 0 Bonus (193) 193 TOTAL SCORE: 5546 Bonus ------- High Alert Combat Kills 54 Follower Combat Kills 209 Friendly Fire -70 Cogmind --------- Core Integrity 272/1000 Matter 243/300 Energy 100/100 System Corruption 8% Temperature Cool (0) Movement Core (150) Ox2 Location -5/Factory Parts ------- > --- POWER (2) -------- (None) > --- PROPULSION (4) --- (None) > --- UTILITY (7) ------ Improved Target Analyzer Core Analyzer Hacking Suite > --- WEAPON (4) ------- Enhanced Gauss Cannon > --- INVENTORY (5) ---- Experimental Heat Sink Improved Weapon Cycler Improved Reaction Control System EM Disruption Field Multitool Peak State ------------ > --- POWER ------------ Micro Fission Core Micro Fission Core > --- PROPULSION ------- Armored Wheel Armored Wheel Armored Wheel Armored Wheel > --- UTILITY ---------- Experimental Heat Sink Improved Cooling System Small Storage Unit Compact Battery EM Disruption Field Improved Shield Generator Hacking Suite > --- WEAPON ----------- Tesla Rifle Autobeam Heavy Ion Cannon Chainsword > --- INVENTORY -------- Cooled Ion Engine Light Angular Momentum Engine Fission Core High-capacity Matter Pod Improved Reaction Control System EM Disruption Field Authchip [Device] Multitool [Rating: 66] Favorites ----------- Power Cooled Ion Engine Engine Cooled Ion Engine Power Core Micro Fission Core Propulsion Armored Wheel Treads Light Treads Leg Improved Carbon-fiber Leg Wheel Armored Wheel Hover Unit Linear Gravjet Utility Small Storage Unit Device Improved Shield Generator Storage Small Storage Unit Processor Improved Target Analyzer Hackware Hacking Suite Protection Hardened Light Armor Plating Weapon Improved Light Cannon Energy Gun Autobeam Energy Cannon Heavy Ion Cannon Ballistic Gun Light Assault Rifle Ballistic Cannon Improved Light Cannon Launcher Subdweller Shrapnel Launcher Special Weapon Multitool Slashing Weapon Chainsword Build | -11 -10 -10 -7 -5 ------- Run | Yrd Mat Sub Rec Fac Slots Evolved 10 | . . . . 10 Power 1 | . . . . 1 Propulsion 2 | . . . . 2 Utility 5 | . . . . 5 Weapon 2 | . . . . 2 Parts Attached 80 | 2 14 20 9 35 Power 10 | . 2 4 1 3 Engine 8 | . 2 4 1 1 Core 2 | . . . . 2 Reactor . | . . . . . Propulsion 23 | 2 6 4 3 8 Treads 4 | . 4 . . . Leg 1 | . . . 1 . Wheel 17 | 2 2 4 2 7 Hover 1 | . . . . 1 Flight . | . . . . . Utility 19 | . 2 3 2 12 Device 10 | . 1 1 2 6 Storage 1 | . . . . 1 Processor 3 | . . . . 3 Hackware 2 | . . . . 2 Protection 3 | . 1 2 . . Artifact . | . . . . . Weapon 28 | . 4 9 3 12 Energy Gun 12 | . 2 1 1 8 Energy Cannon 2 | . . . . 2 Ballistic Gun . | . . . . . Ballistic Cannon 9 | . 2 6 . 1 Launcher 3 | . . 2 1 . Special Weapon 1 | . . . . 1 Impact Weapon . | . . . . . Slashing Weapon 1 | . . . 1 . Piercing Weapon . | . . . . . Special Melee Weapon . | . . . . . Unidentified Prototypes 2 | . 1 . . 1 Parts Lost 33 | . . 8 1 24 Power 5 | . . 2 . 3 Propulsion 9 | . . 1 1 7 Utility 10 | . . 2 . 8 Weapon 9 | . . 3 . 6 Highest Loss Streak 10 | . . 2 1 10 To Critical Strikes 1 | . . . . 1 Average Slot Usage (%) 89 | . 97 94 90 63 Engine 11 | . 14 12 13 3 Treads 8 | . 26 10 . . Wheel 15 | . 1 17 22 14 Device 8 | . 10 5 14 10 Storage 12 | . 14 14 14 6 Protection 3 | . 1 5 . . Energy Gun 2 | . 1 3 . 2 Ballistic Cannon 19 | . 25 24 14 . Slashing Weapon 1 | . . . 5 4 Peak Build Rating 66 | 6 15 14 24 66 Average Rating 17 | 5 11 12 17 39 On Entrance 11 | 6 6 12 11 24 Naked Turns . | . . . . . Heaviest Build 47 | 11 26 26 29 47 Greatest Support 56 | 32 40 40 36 56 Greatest Overweight (x) 7 | . 2 1 7 2 Average Overweight (x) . | . . . . . Largest Inventory Capacity 8 | 8 8 8 8 8 Average Capacity 7 | 8 8 8 8 7 Most Carried 8 | 8 8 8 8 8 Average Carried 7 | 7 7 7 7 6 Final Capacity 8 | 8 8 8 8 5 Final Carried 8 | 6 8 7 8 5 Class Distribution -------------------- 75% | Mutant 22% | Commander-Mutant Dominant Class ---------------- Mutant | -10/Materials Mutant | -10/Subcaves Commander-Mutant | -7/Recycling Commander-Mutant | -5/Factory Resources | -11 -10 -10 -7 -5 ----------- Run | Yrd Mat Sub Rec Fac Matter Collected 1985 | 217 245 717 335 471 Remotely . | . . . . . Salvage Created 1576 | . 214 354 418 590 Parts 88 | . 23 26 13 26 Haulers Intercepted 1 | . 1 . . . Recyclers Shooed 4 | . 1 . 2 1 Parts Field Recycled . | . . . . . Retrieved Matter . | . . . . . Parts Self-Destructed 7 | . . 7 . . Prevented . | . . . . . Kills | -11 -10 -10 -7 -5 ------- Run | Yrd Mat Sub Rec Fac Combat Hostiles Destroyed 41 | . 4 22 3 12 Melee 8 | . . . . 8 Guns 1 | . . . 1 . Cannons 27 | . 4 17 2 4 AOE 5 | . . 5 . . Classes Destroyed 15 | . 5 5 3 2 Worker 1 | . 1 . . . Tunneler 1 | . 1 . . . Hauler 1 | . 1 . . . Recycler 4 | . . . 4 . Operator 1 | . . . . 1 Turret 2 | . . 2 . . Watcher 1 | . 1 . . . Swarmer 10 | . . 6 . 4 Grunt 12 | . 4 2 1 5 Sentry 1 | . . 1 . . Hunter 1 | . . . 1 . Programmer 3 | . . . 1 2 Behemoth 1 | . . . . 1 Artisan 1 | . . 1 . . Subdweller 13 | . . 13 . . Best Kill Streak 5 | . 5 5 3 3 Combat Bots Only 4 | . 4 4 2 3 Max Kills in Single Turn 2 | . 2 2 1 1 Gunslinging . | . . . . . Exploded 1 | . . 1 . . Melee 1 | . . . . 1 Uniques/NPCs Destroyed . | . . . . . Combat | -11 -10 -10 -7 -5 -------- Run | Yrd Mat Sub Rec Fac Hostile Shots Fired 425 | . 7 134 25 259 Missed 130 | . 3 43 5 79 Damage Taken 4556 | . 44 1795 137 2580 Core 961 | . . 215 18 728 Absorbed by Shields 562 | . . . 55 507 Ignored by Resistances 178 | . . . . 178 Regen/Repaired (Parts) 119 | . . . . 119 Core Remaining (%) 53 | 100 . . 6 . Volleys Fired 142 | . 13 99 9 21 Largest 2 | . 2 2 1 2 Hottest 130 | . 78 79 39 130 Shots Fired 276 | . 26 187 12 51 Gun 41 | . . 17 3 21 Cannon 228 | . 26 163 9 30 Launcher 7 | . . 7 . . Special . | . . . . . Kinetic 214 | . 26 170 9 9 Thermal 53 | . . 17 3 33 Explosive . | . . . . . Electromagnetic 9 | . . . . 9 Robot Hit Streak 12 | . 4 12 5 11 Robot Miss Streak 9 | . 4 9 2 8 Penetration Max . | . . . . . Secondary Targets . | . . . . . Autonomous 33 | . . 18 3 12 Shots Hit Robots 196 | . 10 109 14 63 Core Hits 93 | . 7 44 9 33 Critical Kills . | . . . . . Critical Parts Destroyed . | . . . . . Critical Strikes 9 | . 1 2 . 6 Blast 3 | . 1 2 . . Corrupt 1 | . . . . 1 Sever 5 | . . . . 5 Melee Attacks 49 | . . . 7 42 Impact . | . . . . . Slashing 49 | . . . 7 42 Piercing . | . . . . . Sneak Attacks 5 | . . . 4 1 Combat Hostiles . | . . . . . Follow-up Attacks . | . . . . . Damage Inflicted 5253 | . 218 2588 464 1983 Guns 534 | . . 134 46 354 Cannons 2879 | . 210 1866 141 662 Explosions 647 | . . 588 . 59 Melee 1172 | . . . 277 895 Ramming 21 | . 8 . . 13 Kinetic 2957 | . 210 2454 141 152 Thermal 890 | . . 134 46 710 Explosive . | . . . . . Electromagnetic 213 | . . . . 213 Impact . | . . . . . Slashing 1172 | . . . 277 895 Piercing . | . . . . . Highest Corruption 8 | . . . 1 8 Average Corruption 4 | . . . 1 6 Corruption Purged . | . . . . . Corruption Blocked . | . . . . . Effects 8 | . . . . 8 Message Errors 2 | . . . . 2 Matter Fused 3 | . . . . 3 Energy Discharges 1 | . . . . 1 Parts Rejected 1 | . . . . 1 Data Loss (major) 1 | . . . . 1 Overload Shots . | . . . . . Overflow Damage 173 | . 14 20 116 23 Projectiles 17 | . 14 3 . . Explosions 17 | . . 17 . . Melee 139 | . . . 116 23 Knockbacks 19 | . 1 17 . 1 Impact . | . . . . . Kinetic 19 | . 1 17 . 1 Secondary . | . . . . . Self-Inflicted Damage 64 | . . 58 . 6 Shots 1 | . . 1 . . Rammed 4 | . 1 . . 3 Targets Rammed 5 | . 2 . . 3 Kicked . | . . . . . Crushed 1 | . 1 . . . Highest Temperature 174 | . 18 174 132 116 Average Temperature 76 | . 12 100 72 56 Received Heat Transfer 618 | . 24 219 12 363 Siege Activations . | . . . . . Robots Corrupted . | . . . . . Combat Hostiles . | . . . . . Parts Fried . | . . . . . Impact Corruptions . | . . . . . Robots Melted . | . . . . . Combat Hostiles . | . . . . . Parts Melted 1 | . . 1 . . Heat Transferred 1804 | . . 475 129 1200 Parts Sabotaged . | . . . . . Parts Stolen . | . . . . . Parts Stripped . | . . . . . Power Chain Reactions 1 | . . . . 1 Alert | -11 -10 -10 -7 -5 ------- Run | Yrd Mat Sub Rec Fac Peak Influence 524 | . 168 . 169 524 Initial 400 | . . . 14 400 Average 144 | . 59 . 58 340 Maximum Alert Level 2 | . . . . 2 Low Security (%) 75 | 100 100 . 100 18 Level 1 12 | . . . . 40 Level 2 12 | . . . . 41 Level 3 . | . . . . . Level 4 . | . . . . . Level 5 . | . . . . . High Security . | . . . . . Max Security . | . . . . . Squads Dispatched 13 | . 2 . . 11 Investigation 9 | . 1 . . 8 Extermination 1 | . . . . 1 Reinforcement 3 | . 1 . . 2 Assault . | . . . . . Garrison . | . . . . . Intercept . | . . . . . Searches Triggered 1 | . . . . 1 Construction Impeded 1 | . . . . 1 Haulers Reinforced . | . . . . . Active Scanning Responses . | . . . . . Cargo Convoy Interrupts . | . . . . . Stealth | -11 -10 -10 -7 -5 --------- Run | Yrd Mat Sub Rec Fac Distress Signals 4 | . . . 1 3 Communications Jammed . | . . . . . Distress Signals . | . . . . . Times Spotted 77 | . 7 25 10 35 Peak Tracking Total 15 | . 4 4 5 15 Tactical Retreats 4 | . . 2 1 1 Traps | -11 -10 -10 -7 -5 ------- Run | Yrd Mat Sub Rec Fac Traps Triggered 2 | . . . . 2 Indirectly . | . . . . . Trap Hack Attempts . | . . . . . Triggered . | . . . . . Disarmed . | . . . . . Reprogrammed . | . . . . . Reused 2 | . . 1 1 . Traps Extracted . | . . . . . Installed 2 | . . 1 1 . Triggered 1 | . . . 1 . Most Traps Carried 2 | . . 2 1 . Machines | -11 -10 -10 -7 -5 ---------- Run | Yrd Mat Sub Rec Fac Machines Disabled 8 | . 1 3 1 3 Max in Single Turn 3 | . 1 3 1 1 Machines Repaired . | . . . . . Machines Dismantled . | . . . . . Machines Sabotaged . | . . . . . Overloaded Fab Kills . | . . . . . Hacking | -11 -10 -10 -7 -5 --------- Run | Yrd Mat Sub Rec Fac Machines Accessed 19 | . 1 . 12 6 Terminals 10 | . 1 . 6 3 Fabricators 1 | . . . . 1 Repair Stations 2 | . . . . 2 Recycling Units 6 | . . . 6 . Scanalyzers . | . . . . . Garrison Access . | . . . . . Total Hacks 53 | . 3 . 33 17 Successful 22 | . . . 17 5 Failed 31 | . 3 . 16 12 Catastrophic 5 | . . . 5 . Database Lockouts . | . . . . . Manual 16 | . 2 . 5 9 Terminals 26 | . 3 . 15 8 Fabricators 2 | . . . . 2 Repair Stations 7 | . . . . 7 Recycling Units 18 | . . . 18 . Scanalyzers . | . . . . . Garrison Access . | . . . . . Terminal Hacks 5 | . . . 4 1 Part Schematic 2 | . . . 2 . Robot Analysis 1 | . . . 1 . Terminal Index 1 | . . . 1 . Alert Level 1 | . . . . 1 Fabricator Hacks 1 | . . . . 1 Network Status 1 | . . . . 1 Repair Station Hacks . | . . . . . Recycling Unit Hacks 10 | . . . 10 . Process 1 | . . . 1 . Report Inventory 5 | . . . 5 . Retrieve Matter 1 | . . . 1 . Retrieve Components 3 | . . . 3 . Scanalyzer . | . . . . . Garrison Access Hacks . | . . . . . Unauthorized Hacks 6 | . . . 3 3 Terminals . | . . . . . Fabricators 1 | . . . . 1 Recompile 1 | . . . . 1 Repair Stations 2 | . . . . 2 Patch 2 | . . . . 2 Recycling Units 3 | . . . 3 . Reject 1 | . . . 1 . Recyclers 1 | . . . 1 . Tunnel 1 | . . . 1 . Scanalyzers . | . . . . . Garrison Access . | . . . . . Data Cores Recovered . | . . . . . Used . | . . . . . Hacking Detections 14 | . 1 . 9 4 Full Trace Events 11 | . 1 . 7 3 Feedback Events 1 | . . . 1 . Corruption 1 | . . . 1 . Feedback Blocked . | . . . . . Robot Schematics Acquired . | . . . . . Robots Built . | . . . . . Authchips . | . . . . . Time . | . . . . . Total Robot Build Rating . | . . . . . Part Schematics Acquired 2 | . . . 2 . Parts Built . | . . . . . Authchips . | . . . . . Time . | . . . . . Total Part Build Rating . | . . . . . Parts Repaired . | . . . . . Time . | . . . . . Parts Recycled . | . . . . . Recycled Matter 33 | . . . 33 . Retrieved Matter 33 | . . . 33 . Retrieved Components 8 | . . . 8 . Parts Scanalyzed . | . . . . . Part Schematics Acquired . | . . . . . Parts Damaged . | . . . . . Bothacking | -11 -10 -10 -7 -5 ------------ Run | Yrd Mat Sub Rec Fac Used RIF Installer . | . . . . . Robots Hacked . | . . . . . Non-combat . | . . . . . Combat . | . . . . . Robot Hacks Applied . | . . . . . Relay Couplers Released . | . . . . . Fabnet Peak Effective % . | . . . . . Robots Rewired 13 | . . . 13 . Allies Hacked . | . . . . . Hacks Repelled . | . . . . . Allies | -11 -10 -10 -7 -5 -------- Run | Yrd Mat Sub Rec Fac Total Allies 13 | . . . 13 . Largest Group 11 | . . . 11 6 Highest-Rated Group 302 | . . . 302 192 Highest-Rated Ally 40 | . . . 40 40 Total Orders 2 | . . . . 2 FOLLOW 1 | . . . . 1 TUNNEL 1 | . . . . 1 Ally Attacks 35 | . . . 33 2 Total Damage 989 | . . . 885 104 Kills 8 | . . . 8 . Allies Corrupted . | . . . . . Allies Melted . | . . . . . Intel | -11 -10 -10 -7 -5 ------- Run | Yrd Mat Sub Rec Fac Robot Analysis Total 1 | . . . 1 . Derelict Logs Recovered 3 | . . 3 . . Drone Launches . | . . . . . Drone Recoveries . | . . . . . Exploration | -11 -10 -10 -7 -5 ------------- Run | Yrd Mat Sub Rec Fac Turns Passed 4621 | 6 618 2421 905 671 Spaces Moved 3062 | 2 193 1715 599 553 Core 87 | . . . 1 86 Treads 630 | . 179 451 . . Legs . | . . . . . Wheels 2220 | 2 14 1264 598 342 Hover 125 | . . . . 125 Flight . | . . . . . Fastest Speed 40 | 100 100 85 80 40 Average Speed 105 | 100 156 107 108 74 Slowest Speed 400 | 100 240 160 400 150 Overloaded Moves . | . . . . . Propulsion Burnouts . | . . . . . Robots Hopped . | . . . . . Cave-ins Triggered . | . . . . . Exploration Rate (%) 42 | 2 27 89 85 10 Regions Visited 4 Branch Regions 2 Pre-discovered Areas 2 | . . 1 1 . Known Exits Taken . | . . . . . Unknown Exits Taken 4 | 1 1 1 1 . Scrap Searched 8 | . . 8 . . Spaces Dug 3 | . . . 1 2 Terrain Destroyed 96 | . 4 83 2 7 Melee 3 | . . . 1 2 Projectile 8 | . 4 2 1 1 AOE 85 | . . 81 . 4 Terrain Rammed . | . . . . . Walls Destroyed . | . . . . . Machines Disabled . | . . . . . Actions | -11 -10 -10 -7 -5 --------- Run | Yrd Mat Sub Rec Fac Total 4147 | 6 485 2113 838 705 Wait 549 | 1 236 241 49 22 Move 3058 | 1 192 1714 598 553 Hop . | . . . . . Pick Up 41 | . 13 8 5 15 Fast Attach 26 | . 3 6 4 13 Attach 30 | 2 3 6 3 16 Detach 15 | 2 2 1 4 6 Swap 24 | . 8 8 2 6 Drop 37 | . 13 11 6 7 Fire 142 | . 13 99 9 21 Melee 49 | . . . 7 42 Ram 3 | . . . . 3 Kick . | . . . . . Crush 2 | . 2 . . . Escape Stasis . | . . . . . Rewire 168 | . . 18 150 . Trap 2 | . . 1 1 . Miscellaneous 1 | . . . . 1 Route ------- -11/Scrapyard -10/Materials (discovered 2 exits: [*Mat] / [*Sub]) -10/Subcaves (discovered 3 exits: [*Mat x2] / *Rec) -7/Recycling -5/Factory History --------- Turn | Location | Event 6 | -11/Scrapyard | Discovered new exit (range 1) 7 | -11/Scrapyard | Entered Materials 256 | -10/Materials | Discovered new exit (range 16) 300 | -10/Materials | Build established: Mutant 605 | -10/Materials | Discovered new exit (range 5) 625 | -10/Materials | Entered Subcaves 638 | -10/Subcaves | Learned 4 Materials zone layouts 1995 | -10/Subcaves | Curiously followed by a Cobbler waking with a query about "LVR3C" 2115 | -10/Subcaves | Learned Materials stockpile data 2229 | -10/Subcaves | Shifting Twisted Machinery released Sub. Optics 2269 | -10/Subcaves | Shifting Twisted Machinery released Sub. Machine Gun 2321 | -10/Subcaves | Ambushed by Subdwellers from Twisted Machinery 2330 | -10/Subcaves | Ambushed by Subdweller buried in earth 2332 | -10/Subcaves | Core integrity fell below 50% 2388 | -10/Subcaves | Learned location of Zion (-6) 2402 | -10/Subcaves | Shifting Twisted Machinery released Riot Gun 2406 | -10/Subcaves | Ambushed by angry Subdweller bent on revenge 2459 | -10/Subcaves | Discovered new exit (range 11) 2787 | -10/Subcaves | Discovered new exit (range 7) 2829 | -10/Subcaves | Core integrity fell below 20% 2863 | -10/Subcaves | Shifting Twisted Machinery released Sub. Monowheel 2910 | -10/Subcaves | Shifting Twisted Machinery released Riot Gun 2913 | -10/Subcaves | Discovered new exit (range 7) 3046 | -10/Subcaves | Entered Recycling 3405 | -7/Recycling | Lost 4 allies 3527 | -7/Recycling | Build established: Commander-Mutant 3625 | -7/Recycling | Discovered new exit (range 16) 3951 | -7/Recycling | Entered Factory 3951 | -5/Factory | Accompanied by 6 allies 3951 | -5/Factory | Evolved 10 slots: Power x1, Propulsion x2, Utility x5, Weapon x2 4017 | -5/Factory | Spotted B-75 Beast 4049 | -5/Factory | Destroyed B-75 Beast 4131 | -5/Factory | Lost 4 parts (2n1u1w) 4251 | -5/Factory | Search patrols dispatched 4387 | -5/Factory | P-70 Sage assimilated allied Angel 4a 4415 | -5/Factory | P-70 Sage assimilated allied Angel 4d 4474 | -5/Factory | Lost 10 parts (1p2n3u4w) 4549 | -5/Factory | Lost 8 parts (1p2n4u1w) 4558 | -5/Factory | Core integrity fell below 50% 4622 | -5/Factory | Self-destructed Last Messages --------------- 04585_ ALERT: Alarm triggered, dispatching investigation squad. 04586_ K-01 Serf cleans the Pressure Siphon. 04586_ Connecting with Terminal... 04586_ ALERT: Suspicious activity at Terminal F005. Dispatching Investigation squad. 04590_ ALERT: Hostiles spotted, dispatching reinforcements to Terminal F017. 04594_ K-01 Serf cleans the Pressure Siphon. 04598_ System corrupted: Matter fused (-10). 04598_ Terminal reconfigured, +9% effectiveness. 04600_ Connecting with Terminal... 04600_ ALERT: Suspicious activity at Terminal F002. Dispatching Investigation squad. 04604_ Slug penetrates Wall. 04605_ Linear Gravjet destroyed. 04606_ Critical hit (Burn: +37). 04615_ Acquired Enh. Gauss Cannon. 04618_ Critical hit (Burn: +50). 04622_ System corrupted: Matter fused (-5). 04622_ Slug penetrates Wall. Map ----- +----------------------------------------------------+ | ??????????????????????????# #??????????????????? | | ??????????????????????????# #??????????????????? | | ??????????????""??????????# #??????????????????? | | ?????????????? ?????????## ##?????????????????? | | ?????????????? ?????????# #?????????????????? | | ???????????###+########### #?????????????????? | | ???????????# """ ! #?????????????????? | | ???????????# ! "T" #### #?????????????????? | | ??? ""T"" # #??# #?????????????????? | | ??# + """ #??### ###?????????????????? | | ??# # """ #????# #???????????????????? | | ??# !??# """ #????# #???????????????????? | | ??# ?????# #????# #???????????????????? | | ?#????????# """" #????# #???????????????????? | | ???????????# """" #????# #???????????????????? | | ???????????# """" #????# #???????????????????? | | ???????????# #????# #???????????????????? | | ???????????# """" ######+####????????????????? | | ???????????# """" # #????????????????? | | ############ """" # #????????????????? | | # """ """ #????????????????? | | """" # """ """ #????????????????? | | """" # """ """ #????????????????? | | """" # #????????????????? | | # #????????????????? | | #####"" """" # @ #????????????????? | | ????#"" """" #####u#####????????????????? | | ????#"T """" ? ???????????????????? | | ????#"" #?????????????????? | | ????#"" #?????????????????? | | ????# #?????????????????? | | ????# #?????????????????? | | ????###################### #?????????????????? | | ?????????????????????????# #?????????????????? | | ?????????????????????????# #?????????????????? | | ?????????????????????????# #?????????????????? | | ?????????????????????????# #?????????????????? | | ?????????????????????????# #?????????????????? | | ?????????????????????????# #?????????????????? | | ?????????????????????????? #?????????????????? | | ?????????????????????????? #?????????????????? | | ?????????????????????????? ???????????????????? | | ?????????????????????????????????????????????????? | | ?????????????????????????????????????????????????? | | ?????????????????????????????????????????????????? | | ?????????????????????????????????????????????????? | | ?????????????????????????????????????????????????? | | ?????????????????????????????????????????????????? | | ?????????????????????????????????????????????????? | | ?????????????????????????????????????????????????? | +----------------------------------------------------+ Best States ------------- Heat Dissipation 86 Coolant Potential 50 Energy Generation 25 Energy Capacity 460 Matter Stores 300 Matter Capacity 300 Sight Range 16 Terrain Scan Density 10 Armor Coverage 150 Resistance: EM 25 Evasion (%) 57 Target Analysis 6 Core Analysis 6 Recoil Reduction 2 Offensive Hacking 10 Authchip Count 1 Item Schematics ----------------- Fission Core | -7/Recycling | Hacked Remote Shield | -7/Recycling | Hacked Robot Schematics ------------------ None Fabricated ------------ Nothing Alien Tech Used ----------------- None Achievements -------------- None Challenges ------------ None Game ------ Seed BladeWaveKit Manual? 0 Play Time 00:28:10 Cumulative 880.8 hours Start 2024.08.22 @ 12:15:03 End 2024.08.22 @ 12:40:32 Sessions 1 Manual Loads 0 Difficulty Rogue Special Mode None Game No. 1065 Rogue 786 Adventurer 124 Explorer 155 Win Type - Total 37 Types 28/0/7/1/0/0/0/1/0 Lore% 77 Gallery% 89 Achievement% 78 Wizard Run 0 Options --------- Layout 0 ASCII 0 Keyboard 1 Movement Numpad Keybinds 0 Fullscreen 2 Font 18/Smallcaps Map View 76x50 Zoom Use 0% Tactical HUD 1 Map Filters NONE Filters NONE Steam 1 RUN: 89ee47e7-09d4-42f7-a591-49cda0c9a01b